[Event "*** Titled Tuesday 3|2 Blitz (Early)"]
[Site "Chess.com"]
[Date "2017.01.03"]
[Round "8"]
[White "Anton_Demchenko"]
[Black "Dlugy"]
[Result "0-1"]
[WhiteElo "2643"]
[BlackElo "2696"]
[TimeControl "180+2"]
[EndTime "12:44:25 PST"]
[Termination "Dlugy won by resignation"]

1. e4 {[%clk 0:03:01.9]} 1... c5 {[%clk 0:03:00.7]} 2. Nf3 {[%clk 0:03:02.5]}
2... d6 {[%clk 0:03:01.1]} 3. d4 {[%clk 0:03:03.3]} 3... cxd4 {[%clk 0:02:59.9]}
4. Nxd4 {[%clk 0:03:05.2]} 4... Nf6 {[%clk 0:02:59.4]} 5. Nc3 {[%clk 0:03:06.7]}
5... Nc6 {[%clk 0:02:59.3]} 6. Bg5 {[%clk 0:03:06.8]} 6... e6 {[%clk 0:02:59.5]}
7. Qd2 {[%clk 0:03:08.2]} 7... a6 {[%clk 0:02:59.4]} 8. O-O-O {[%clk 0:03:09]}
8... h6 {[%clk 0:02:58.8]} 9. Be3 {[%clk 0:03:08.9]} 9... Nxd4 {[%clk
0:02:57.3]} 10. Bxd4 {[%clk 0:03:07.7]} 10... b5 {[%clk 0:02:58.3]} 11. f3
{[%clk 0:03:09.1]} 11... Qa5 {[%clk 0:02:57.5]} 12. Kb1 {[%clk 0:03:09.1]} 12...
b4 {[%clk 0:02:51.4]} 13. Ne2 {[%clk 0:03:10]} 13... e5 {[%clk 0:02:52.4]} 14.
Bf2 {[%clk 0:03:09.1]} 14... Be6 {[%clk 0:02:54.1]} 15. Nc1 {[%clk 0:03:10]}
15... Be7 {[%clk 0:02:49.8]} 16. Nb3 {[%clk 0:02:59.4]} 16... Qa4 {[%clk
0:02:50.6]} 17. Bd3 {[%clk 0:02:50.8]} 17... O-O {[%clk 0:02:46]} 18. Qe2 {[%clk
0:02:26.9]} 18... Rfc8 {[%clk 0:02:44.5]} 19. h4 {[%clk 0:02:22.6]} 19... h5
{[%clk 0:02:33.9]} 20. Rhg1 {[%clk 0:02:21.1]} 20... Qd7 {[%clk 0:02:26]} 21.
Be3 {[%clk 0:02:14.4]} 21... a5 {[%clk 0:02:23.8]} 22. Nd2 {[%clk 0:02:08.7]}
22... d5 {[%clk 0:02:16.3]} 23. Bg5 {[%clk 0:01:56.1]} 23... d4 {[%clk
0:02:09.6]} 24. g4 {[%clk 0:01:40.4]} 24... hxg4 {[%clk 0:02:06.7]} 25. Bxf6
{[%clk 0:01:41.3]} 25... Bxf6 {[%clk 0:02:03]} 26. fxg4 {[%clk 0:01:42.6]} 26...
a4 {[%clk 0:01:58.4]} 27. g5 {[%clk 0:01:43.1]} 27... Bd8 {[%clk 0:01:53.5]} 28.
Bc4 {[%clk 0:01:43.7]} 28... b3 {[%clk 0:01:37.2]} 29. cxb3 {[%clk 0:01:22]}
29... axb3 {[%clk 0:01:39.1]} 30. axb3 {[%clk 0:01:04.9]} 30... Qa7 {[%clk
0:01:34.9]} 31. g6 {[%clk 0:00:49.8]} 31... Qa2+ {[%clk 0:01:31.9]} 32. Kc2
{[%clk 0:00:50.8]} 32... Bxc4 {[%clk 0:01:25.7]} 33. Nxc4 {[%clk 0:00:47.5]}
33... Ra4 {[%clk 0:00:52.6]} 34. gxf7+ {[%clk 0:00:26.4]} 34... Kf8 {[%clk
0:00:53.3]} 35. Kd2 {[%clk 0:00:03.1]} 35... Qxb3 {[%clk 0:00:47.5]} 36. Qh5
{[%clk 0:00:04.1]} 36... Qb4+ {[%clk 0:00:44.1]} 37. Ke2 {[%clk 0:00:03.7]}
37... Qxc4+ {[%clk 0:00:45.1]} 38. Kf2 {[%clk 0:00:03.9]} 38... Qxf7+ {[%clk
0:00:45.1]} 39. Qxf7+ {[%clk 0:00:04.8]} 39... Kxf7 {[%clk 0:00:46.5]} 0-1

[Event "*** Titled Tuesday 3|2 Blitz (Early)"]
[Site "Chess.com"]
[Date "2017.01.03"]
[Round "8"]
[White "ChessWarrior7197"]
[Black "Andrejkin"]
[Result "1/2-1/2"]
[WhiteElo "2470"]
[BlackElo "2203"]
[TimeControl "180+2"]
[EndTime "12:44:29 PST"]
[Termination "Game drawn - insufficient material"]

1. d4 {[%clk 0:03:01.2]} 1... Nf6 {[%clk 0:02:53]} 2. Bf4 {[%clk 0:03:00.8]}
2... e6 {[%clk 0:02:54.9]} 3. Nd2 {[%clk 0:03:01.6]} 3... d5 {[%clk 0:02:50.8]}
4. e3 {[%clk 0:03:00.7]} 4... Bd6 {[%clk 0:02:52.7]} 5. Bg3 {[%clk 0:03:00.9]}
5... b5 {[%clk 0:02:53.2]} 6. Bxb5+ {[%clk 0:03:00.9]} 6... c6 {[%clk
0:02:53.1]} 7. Bd3 {[%clk 0:03:01.5]} 7... Ba6 {[%clk 0:02:44.9]} 8. Bxa6 {[%clk
0:02:59.5]} 8... Nxa6 {[%clk 0:02:46.8]} 9. c3 {[%clk 0:03:00.8]} 9... O-O
{[%clk 0:02:39.7]} 10. Ngf3 {[%clk 0:03:01.8]} 10... c5 {[%clk 0:02:38.6]} 11.
O-O {[%clk 0:03:02.3]} 11... Bxg3 {[%clk 0:02:37]} 12. hxg3 {[%clk 0:03:02.8]}
12... cxd4 {[%clk 0:02:38.9]} 13. exd4 {[%clk 0:03:02.6]} 13... Qb6 {[%clk
0:02:33.9]} 14. Qb3 {[%clk 0:03:00.8]} 14... Rab8 {[%clk 0:02:35.8]} 15. Rfb1
{[%clk 0:02:55.8]} 15... Nd7 {[%clk 0:02:32.5]} 16. Qxb6 {[%clk 0:02:55.7]}
16... Nxb6 {[%clk 0:02:34.4]} 17. Ne5 {[%clk 0:02:55.5]} 17... f6 {[%clk
0:02:33.6]} 18. Nd3 {[%clk 0:02:54.5]} 18... Rb7 {[%clk 0:02:34]} 19. Nb3 {[%clk
0:02:55.7]} 19... Kf7 {[%clk 0:02:32.4]} 20. Nbc5 {[%clk 0:02:55.8]} 20... Nxc5
{[%clk 0:02:29.7]} 21. Nxc5 {[%clk 0:02:57.7]} 21... Re7 {[%clk 0:02:29.8]} 22.
Re1 {[%clk 0:02:47.7]} 22... Nc4 {[%clk 0:02:30.4]} 23. b3 {[%clk 0:02:48]}
23... Na3 {[%clk 0:02:30.4]} 24. Rac1 {[%clk 0:02:47.5]} 24... a5 {[%clk
0:02:28]} 25. f4 {[%clk 0:02:45]} 25... Nb5 {[%clk 0:02:25.7]} 26. Re3 {[%clk
0:02:45.7]} 26... g6 {[%clk 0:02:23.4]} 27. Rce1 {[%clk 0:02:46.4]} 27... h6
{[%clk 0:02:19.7]} 28. Rxe6 {[%clk 0:02:42.2]} 28... Rxe6 {[%clk 0:02:15.9]} 29.
Rxe6 {[%clk 0:02:44.1]} 29... Nxc3 {[%clk 0:02:17.4]} 30. Kf2 {[%clk 0:02:39.3]}
30... Ne4+ {[%clk 0:02:14.5]} 31. Rxe4 {[%clk 0:02:30.3]} 31... dxe4 {[%clk
0:02:14.9]} 32. Nxe4 {[%clk 0:02:32.2]} 32... Ke6 {[%clk 0:02:13.1]} 33. Ke3
{[%clk 0:02:33.2]} 33... Kd5 {[%clk 0:02:09]} 34. Kd3 {[%clk 0:02:34.3]} 34...
g5 {[%clk 0:02:05.5]} 35. Nc3+ {[%clk 0:02:34.3]} 35... Ke6 {[%clk 0:02:02.7]}
36. d5+ {[%clk 0:02:33.3]} 36... Kd6 {[%clk 0:02:01.7]} 37. Kd4 {[%clk
0:02:34.3]} 37... gxf4 {[%clk 0:02:01.9]} 38. gxf4 {[%clk 0:02:35.2]} 38... Rg8
{[%clk 0:02:01.6]} 39. Ne4+ {[%clk 0:02:35]} 39... Kc7 {[%clk 0:02:03]} 40. d6+
{[%clk 0:02:23.1]} 40... Kc6 {[%clk 0:01:58.2]} 41. d7 {[%clk 0:02:21.2]} 41...
Kc7 {[%clk 0:01:52.9]} 42. Nxf6 {[%clk 0:02:12.9]} 42... Rxg2 {[%clk 0:01:53.7]}
43. f5 {[%clk 0:02:14.5]} 43... Rf2 {[%clk 0:01:49.3]} 44. Ke5 {[%clk
0:02:15.1]} 44... h5 {[%clk 0:01:47.4]} 45. Ne4 {[%clk 0:02:06.5]} 45... Re2
{[%clk 0:01:44.4]} 46. f6 {[%clk 0:02:04.2]} 46... Kxd7 {[%clk 0:01:43]} 47. Kf5
{[%clk 0:02:05.3]} 47... h4 {[%clk 0:01:38.4]} 48. Ng5 {[%clk 0:02:04.6]} 48...
Rf2+ {[%clk 0:01:33.8]} 49. Kg6 {[%clk 0:02:05.3]} 49... Rg2 {[%clk 0:01:30.4]}
50. Kh5 {[%clk 0:01:54.6]} 50... Ke8 {[%clk 0:01:24.3]} 51. Kxh4 {[%clk
0:01:54.8]} 51... Rxa2 {[%clk 0:01:25.2]} 52. Kh5 {[%clk 0:01:55.7]} 52... Rb2
{[%clk 0:01:21.1]} 53. Kg6 {[%clk 0:01:56.5]} 53... Rxb3 {[%clk 0:01:20.5]} 54.
Kg7 {[%clk 0:01:24.3]} 54... Rb7+ {[%clk 0:01:02.8]} 55. f7+ {[%clk 0:01:19.7]}
55... Rxf7+ {[%clk 0:01:03.1]} 56. Nxf7 {[%clk 0:01:21.6]} 56... Ke7 {[%clk
0:01:02]} 57. Ne5 {[%clk 0:01:22.5]} 57... a4 {[%clk 0:01:01.4]} 58. Nc4 {[%clk
0:01:23.4]} 58... Ke6 {[%clk 0:01:01.8]} 59. Na3 {[%clk 0:01:25]} 59... Kd5
{[%clk 0:01:02.8]} 60. Kf6 {[%clk 0:01:26.9]} 60... Kd4 {[%clk 0:01:04.3]} 61.
Ke6 {[%clk 0:01:27.8]} 61... Kc3 {[%clk 0:01:06.2]} 62. Kd5 {[%clk 0:01:28.2]}
62... Kb4 {[%clk 0:01:07.8]} 63. Nc4 {[%clk 0:01:30.1]} 63... a3 {[%clk
0:01:06.7]} 64. Nxa3 {[%clk 0:01:31.3]} 1/2-1/2

[Event "*** Titled Tuesday 3|2 Blitz (Early)"]
[Site "Chess.com"]
[Date "2017.01.03"]
[Round "8"]
[White "Egorov_Pavel"]
[Black "biostatistician"]
[Result "0-1"]
[WhiteElo "2310"]
[BlackElo "2440"]
[TimeControl "180+2"]
[EndTime "12:45:00 PST"]
[Termination "biostatistician won on time"]

1. d4 {[%clk 0:03:02]} 1... Nf6 {[%clk 0:03:00.4]} 2. c4 {[%clk 0:03:03.5]} 2...
g6 {[%clk 0:03:01.8]} 3. Nc3 {[%clk 0:03:04.7]} 3... Bg7 {[%clk 0:03:03.7]} 4.
e4 {[%clk 0:03:05.2]} 4... d6 {[%clk 0:03:05]} 5. h3 {[%clk 0:03:06.5]} 5... O-O
{[%clk 0:03:05.6]} 6. Nf3 {[%clk 0:03:08.1]} 6... e5 {[%clk 0:03:06.7]} 7. dxe5
{[%clk 0:03:09.7]} 7... dxe5 {[%clk 0:03:08.6]} 8. Qxd8 {[%clk 0:03:10.5]} 8...
Rxd8 {[%clk 0:03:10.5]} 9. Bg5 {[%clk 0:03:11]} 9... Nbd7 {[%clk 0:03:10.1]} 10.
O-O-O {[%clk 0:03:10.3]} 10... Rf8 {[%clk 0:03:10.9]} 11. Be3 {[%clk 0:03:08.7]}
11... c6 {[%clk 0:03:08.4]} 12. Be2 {[%clk 0:03:06.9]} 12... Re8 {[%clk
0:03:05.5]} 13. Nd2 {[%clk 0:03:06.9]} 13... Nf8 {[%clk 0:02:59]} 14. Nb3 {[%clk
0:03:05.1]} 14... Ne6 {[%clk 0:02:59.5]} 15. g3 {[%clk 0:02:59.2]} 15... Bf8
{[%clk 0:02:38.2]} 16. f4 {[%clk 0:02:57.3]} 16... Bh6 {[%clk 0:02:36.9]} 17.
Rhf1 {[%clk 0:02:55.7]} 17... exf4 {[%clk 0:02:32]} 18. gxf4 {[%clk 0:02:47.3]}
18... Ng7 {[%clk 0:02:32.9]} 19. e5 {[%clk 0:02:36.9]} 19... Nfh5 {[%clk
0:02:31.8]} 20. Bxh5 {[%clk 0:02:22.1]} 20... Nxh5 {[%clk 0:02:32.2]} 21. Ne4
{[%clk 0:02:23.1]} 21... Bf5 {[%clk 0:02:11.7]} 22. Nd6 {[%clk 0:02:15.5]} 22...
Red8 {[%clk 0:01:47.9]} 23. Nxf5 {[%clk 0:02:11.4]} 23... gxf5 {[%clk
0:01:49.8]} 24. Nd4 {[%clk 0:02:04]} 24... Ng7 {[%clk 0:01:46.3]} 25. Rg1 {[%clk
0:01:59.4]} 25... Kf8 {[%clk 0:01:46.9]} 26. Rxg7 {[%clk 0:01:46.9]} 26... Bxg7
{[%clk 0:01:45.9]} 27. Nxf5 {[%clk 0:01:47.8]} 27... Rxd1+ {[%clk 0:01:46.2]}
28. Kxd1 {[%clk 0:01:48.1]} 28... Rd8+ {[%clk 0:01:46.4]} 29. Ke2 {[%clk
0:01:49.2]} 29... b6 {[%clk 0:01:45.6]} 30. h4 {[%clk 0:01:29.3]} 30... Re8
{[%clk 0:01:42.2]} 31. h5 {[%clk 0:00:31.1]} 31... f6 {[%clk 0:01:33.5]} 32. h6
{[%clk 0:00:31.5]} 32... Bh8 {[%clk 0:01:34.2]} 33. e6 {[%clk 0:00:32.8]} 33...
Rxe6 {[%clk 0:01:34.4]} 34. Kd3 {[%clk 0:00:23.1]} 34... Kf7 {[%clk 0:01:34.5]}
35. Nd4 {[%clk 0:00:17.7]} 35... Rd6 {[%clk 0:01:32.7]} 36. Ke4 {[%clk
0:00:06.8]} 36... c5 {[%clk 0:01:25.8]} 37. Nb5 {[%clk 0:00:03.2]} 37... Re6+
{[%clk 0:01:26.7]} 38. Kf3 {[%clk 0:00:03.4]} 38... f5 {[%clk 0:01:26.4]} 39. b3
{[%clk 0:00:03.3]} 39... Rxh6 {[%clk 0:01:20.5]} 40. Nxa7 {[%clk 0:00:04.8]}
40... Rh2 {[%clk 0:01:21.3]} 41. a3 {[%clk 0:00:04.3]} 41... Rb2 {[%clk
0:01:21.3]} 42. b4 {[%clk 0:00:05.2]} 42... cxb4 {[%clk 0:01:17.1]} 43. axb4
{[%clk 0:00:06.8]} 43... Rxb4 {[%clk 0:01:17.2]} 44. c5 {[%clk 0:00:08.4]} 44...
bxc5 {[%clk 0:01:16.2]} 45. Bxc5 {[%clk 0:00:10]} 45... Rb3+ {[%clk 0:01:17.1]}
46. Kf2 {[%clk 0:00:11.2]} 46... Rd3 {[%clk 0:01:13.3]} 47. Nb5 {[%clk
0:00:07.1]} 47... Rd5 {[%clk 0:01:11.3]} 48. Nd6+ {[%clk 0:00:08]} 48... Ke6
{[%clk 0:01:11.8]} 49. Ba3 {[%clk 0:00:06.8]} 49... Rxd6 {[%clk 0:01:12.7]} 0-1

[Event "*** Titled Tuesday 3|2 Blitz (Early)"]
[Site "Chess.com"]
[Date "2017.01.03"]
[Round "8"]
[White "Spas_Kozhuharov"]
[Black "petrpalachev"]
[Result "1-0"]
[WhiteElo "2480"]
[BlackElo "2408"]
[TimeControl "180+2"]
[EndTime "12:45:08 PST"]
[Termination "Spas_Kozhuharov won by resignation"]

1. d4 {[%clk 0:03:01.9]} 1... d5 {[%clk 0:02:59.6]} 2. c4 {[%clk 0:03:01.9]}
2... e6 {[%clk 0:03:01.2]} 3. Nc3 {[%clk 0:02:59.4]} 3... Bb4 {[%clk 0:03:01.8]}
4. Qa4+ {[%clk 0:02:54.7]} 4... Nc6 {[%clk 0:03:02.1]} 5. cxd5 {[%clk
0:02:54.1]} 5... exd5 {[%clk 0:03:02.1]} 6. Bf4 {[%clk 0:02:48.7]} 6... Nf6
{[%clk 0:03:00.5]} 7. e3 {[%clk 0:02:48.8]} 7... O-O {[%clk 0:02:57.6]} 8. Nf3
{[%clk 0:02:46.1]} 8... a6 {[%clk 0:02:50.4]} 9. Be2 {[%clk 0:02:43]} 9... Bg4
{[%clk 0:02:48.5]} 10. O-O {[%clk 0:02:41.7]} 10... Bd6 {[%clk 0:02:46.9]} 11.
Bg5 {[%clk 0:02:40.6]} 11... Be7 {[%clk 0:02:41]} 12. Bxf6 {[%clk 0:02:33.2]}
12... Bxf6 {[%clk 0:02:41]} 13. Qb3 {[%clk 0:02:34.5]} 13... Na5 {[%clk
0:02:40.5]} 14. Qxd5 {[%clk 0:02:33.5]} 14... Bxf3 {[%clk 0:02:34.5]} 15. Qxd8
{[%clk 0:02:29.6]} 15... Raxd8 {[%clk 0:02:30.1]} 16. Bxf3 {[%clk 0:02:30.8]}
16... c5 {[%clk 0:02:23.3]} 17. d5 {[%clk 0:02:21]} 17... Bxc3 {[%clk
0:02:23.4]} 18. bxc3 {[%clk 0:02:21.1]} 18... Nc4 {[%clk 0:02:23.3]} 19. a4
{[%clk 0:02:16.5]} 19... Ne5 {[%clk 0:02:07.9]} 20. Rfd1 {[%clk 0:02:10.5]}
20... f5 {[%clk 0:02:04.5]} 21. Rab1 {[%clk 0:02:03.1]} 21... Rf7 {[%clk
0:02:03]} 22. Be2 {[%clk 0:02:00.3]} 22... Rfd7 {[%clk 0:01:43.4]} 23. c4 {[%clk
0:01:47.3]} 23... g6 {[%clk 0:01:37.1]} 24. a5 {[%clk 0:01:43]} 24... Nf7 {[%clk
0:01:35.9]} 25. Bd3 {[%clk 0:01:37.6]} 25... Nd6 {[%clk 0:01:37.8]} 26. f3
{[%clk 0:01:36.7]} 26... Re7 {[%clk 0:01:38.9]} 27. Kf2 {[%clk 0:01:37.5]} 27...
Kf7 {[%clk 0:01:40]} 28. Rb6 {[%clk 0:01:33.9]} 28... Rdd7 {[%clk 0:01:37.2]}
29. h3 {[%clk 0:01:33.7]} 29... h5 {[%clk 0:01:33.2]} 30. g4 {[%clk 0:01:33]}
30... hxg4 {[%clk 0:01:33.7]} 31. hxg4 {[%clk 0:01:34.7]} 31... fxg4 {[%clk
0:01:34.1]} 32. fxg4 {[%clk 0:01:33.3]} 32... Ne4+ {[%clk 0:01:35.6]} 33. Kg2
{[%clk 0:01:30.6]} 33... Kg7 {[%clk 0:01:23.1]} 34. Bxe4 {[%clk 0:01:13.1]}
34... Rxe4 {[%clk 0:01:23.1]} 35. Rdb1 {[%clk 0:01:15]} 35... Rxg4+ {[%clk
0:01:02.3]} 36. Kf3 {[%clk 0:01:13.5]} 36... Rxc4 {[%clk 0:01:03.8]} 37. Rxb7
{[%clk 0:01:14.3]} 37... Rxb7 {[%clk 0:01:05.7]} 38. Rxb7+ {[%clk 0:01:14.3]}
38... Kf6 {[%clk 0:01:07.6]} 39. e4 {[%clk 0:01:13.6]} 39... Rc3+ {[%clk
0:01:04.4]} 40. Kg4 {[%clk 0:01:09.6]} 40... Ke5 {[%clk 0:00:41.5]} 41. Re7+
{[%clk 0:01:08.8]} 41... Kd4 {[%clk 0:00:43.1]} 42. d6 {[%clk 0:01:09.1]} 42...
Rd3 {[%clk 0:00:34.8]} 43. d7 {[%clk 0:01:06.9]} 43... Ke3 {[%clk 0:00:35.1]}
44. e5 {[%clk 0:01:04.7]} 44... c4 {[%clk 0:00:35.8]} 45. e6 {[%clk 0:01:05.1]}
45... c3 {[%clk 0:00:36.8]} 46. Re8 {[%clk 0:01:05.5]} 46... Rd4+ {[%clk
0:00:30.7]} 47. Kg5 {[%clk 0:01:05]} 47... Rc4 {[%clk 0:00:21.3]} 48. Rc8 {[%clk
0:01:02.4]} 1-0

[Event "*** Titled Tuesday 3|2 Blitz (Early)"]
[Site "Chess.com"]
[Date "2017.01.03"]
[Round "8"]
[White "underdogchss"]
[Black "Ginger_GM"]
[Result "0-1"]
[WhiteElo "2299"]
[BlackElo "2449"]
[TimeControl "180+2"]
[EndTime "12:45:16 PST"]
[Termination "Ginger_GM won on time"]

1. d4 {[%clk 0:03:02]} 1... d5 {[%clk 0:03:00]} 2. Nf3 {[%clk 0:03:02.1]} 2...
Nc6 {[%clk 0:03:00.1]} 3. c4 {[%clk 0:03:02.4]} 3... Bg4 {[%clk 0:02:59.6]} 4.
Nc3 {[%clk 0:02:53.4]} 4... e6 {[%clk 0:02:49.9]} 5. Bf4 {[%clk 0:02:49.9]} 5...
Bb4 {[%clk 0:02:46.5]} 6. e3 {[%clk 0:02:50.1]} 6... Nf6 {[%clk 0:02:46.5]} 7.
Rc1 {[%clk 0:02:15.5]} 7... O-O {[%clk 0:02:44.9]} 8. h3 {[%clk 0:02:06.2]} 8...
Bxf3 {[%clk 0:02:39.9]} 9. Qxf3 {[%clk 0:02:02.9]} 9... Qe7 {[%clk 0:02:40.6]}
10. a3 {[%clk 0:01:35]} 10... Bxc3+ {[%clk 0:02:32.1]} 11. Rxc3 {[%clk
0:01:36.1]} 11... Ne4 {[%clk 0:02:31.7]} 12. Rc2 {[%clk 0:01:30.8]} 12... e5
{[%clk 0:02:32.3]} 13. dxe5 {[%clk 0:01:29.8]} 13... Nxe5 {[%clk 0:02:33]} 14.
Bxe5 {[%clk 0:01:27.6]} 14... Qxe5 {[%clk 0:02:33.2]} 15. Bd3 {[%clk 0:01:28.6]}
15... Nc5 {[%clk 0:02:12.9]} 16. Be2 {[%clk 0:00:55.9]} 16... d4 {[%clk
0:02:00.2]} 17. exd4 {[%clk 0:00:56.5]} 17... Qxd4 {[%clk 0:02:00.9]} 18. O-O
{[%clk 0:00:57.8]} 18... c6 {[%clk 0:01:39.2]} 19. Rd1 {[%clk 0:00:57]} 19...
Qe5 {[%clk 0:01:38.3]} 20. b4 {[%clk 0:00:51.1]} 20... Ne6 {[%clk 0:01:38.9]}
21. Rcd2 {[%clk 0:00:47.7]} 21... Rad8 {[%clk 0:01:29.2]} 22. Rxd8 {[%clk
0:00:47.9]} 22... Rxd8 {[%clk 0:01:29.1]} 23. Rxd8+ {[%clk 0:00:49]} 23... Nxd8
{[%clk 0:01:29.3]} 24. g3 {[%clk 0:00:37.6]} 24... Ne6 {[%clk 0:01:28.3]} 25.
Qd3 {[%clk 0:00:31.4]} 25... Nd4 {[%clk 0:01:24.9]} 26. Bf1 {[%clk 0:00:32.5]}
26... g6 {[%clk 0:01:24.9]} 27. c5 {[%clk 0:00:33.3]} 27... h5 {[%clk 0:01:24]}
28. h4 {[%clk 0:00:25.6]} 28... Kg7 {[%clk 0:01:23.2]} 29. Kh2 {[%clk
0:00:25.2]} 29... f5 {[%clk 0:01:13.1]} 30. Kg1 {[%clk 0:00:24.2]} 30... f4
{[%clk 0:01:13.7]} 31. gxf4 {[%clk 0:00:22.1]} 31... Qxf4 {[%clk 0:01:14.3]} 32.
Qg3 {[%clk 0:00:17.9]} 32... Qxg3+ {[%clk 0:01:06.6]} 33. fxg3 {[%clk
0:00:18.6]} 33... Nc2 {[%clk 0:01:08]} 34. Kf2 {[%clk 0:00:13.8]} 34... Nxa3
{[%clk 0:01:07.8]} 35. Bd3 {[%clk 0:00:15.1]} 35... Nb5 {[%clk 0:00:59.1]} 36.
Bxb5 {[%clk 0:00:09.6]} 36... cxb5 {[%clk 0:00:59.3]} 37. Ke3 {[%clk 0:00:11]}
37... Kf6 {[%clk 0:00:59.4]} 38. Kf4 {[%clk 0:00:12]} 38... a6 {[%clk
0:00:51.6]} 39. g4 {[%clk 0:00:10.3]} 39... hxg4 {[%clk 0:00:42.3]} 40. Kxg4
{[%clk 0:00:11.3]} 40... Ke6 {[%clk 0:00:38.1]} 41. Kg5 {[%clk 0:00:11.2]} 41...
Kf7 {[%clk 0:00:39.1]} 42. Kg4 {[%clk 0:00:11.3]} 42... Kf6 {[%clk 0:00:27.5]}
43. Kf4 {[%clk 0:00:11.6]} 43... Ke6 {[%clk 0:00:24.9]} 44. Kg5 {[%clk
0:00:12.6]} 44... a5 {[%clk 0:00:25.9]} 45. bxa5 {[%clk 0:00:05.5]} 45... Kd7
{[%clk 0:00:24.5]} 0-1

[Event "*** Titled Tuesday 3|2 Blitz (Early)"]
[Site "Chess.com"]
[Date "2017.01.03"]
[Round "8"]
[White "mwpchess"]
[Black "GrigorGrigorov"]
[Result "1/2-1/2"]
[WhiteElo "2449"]
[BlackElo "2503"]
[TimeControl "180+2"]
[EndTime "12:45:55 PST"]
[Termination "Game drawn by repetition"]

1. c4 {[%clk 0:03:02]} 1... g6 {[%clk 0:02:59.6]} 2. g3 {[%clk 0:03:02.1]} 2...
Bg7 {[%clk 0:03:00.2]} 3. Bg2 {[%clk 0:03:02.5]} 3... c5 {[%clk 0:03:01.2]} 4.
Nc3 {[%clk 0:03:02.4]} 4... Nc6 {[%clk 0:03:00.2]} 5. a3 {[%clk 0:03:02.9]} 5...
a6 {[%clk 0:03:00.7]} 6. e3 {[%clk 0:03:02.5]} 6... e6 {[%clk 0:02:49.8]} 7.
Nge2 {[%clk 0:03:01.3]} 7... Nge7 {[%clk 0:02:50.2]} 8. d4 {[%clk 0:02:57.8]}
8... cxd4 {[%clk 0:02:50.4]} 9. Nxd4 {[%clk 0:02:58.2]} 9... d5 {[%clk
0:02:49.5]} 10. cxd5 {[%clk 0:02:57]} 10... exd5 {[%clk 0:02:48.3]} 11. O-O
{[%clk 0:02:55.4]} 11... O-O {[%clk 0:02:48]} 12. Nce2 {[%clk 0:02:44]} 12...
Bg4 {[%clk 0:02:43.9]} 13. h3 {[%clk 0:02:36.9]} 13... Bd7 {[%clk 0:02:35.6]}
14. Kh2 {[%clk 0:02:34.4]} 14... Qb6 {[%clk 0:02:35.5]} 15. Rb1 {[%clk
0:02:22.8]} 15... Rfd8 {[%clk 0:02:30.9]} 16. b4 {[%clk 0:02:20.9]} 16... Ne5
{[%clk 0:02:24.9]} 17. Nf4 {[%clk 0:02:03.2]} 17... Be8 {[%clk 0:02:00.8]} 18.
a4 {[%clk 0:01:56.9]} 18... Rac8 {[%clk 0:02:00.3]} 19. a5 {[%clk 0:01:53.2]}
19... Qd6 {[%clk 0:02:00.2]} 20. Nd3 {[%clk 0:01:45.4]} 20... Nxd3 {[%clk
0:01:46.4]} 21. Qxd3 {[%clk 0:01:44.3]} 21... Rc4 {[%clk 0:01:47.1]} 22. Bb2
{[%clk 0:01:01]} 22... Rdc8 {[%clk 0:01:29.9]} 23. Ba1 {[%clk 0:00:58.2]} 23...
h5 {[%clk 0:01:10.1]} 24. b5 {[%clk 0:00:48.8]} 24... h4 {[%clk 0:00:51.6]} 25.
bxa6 {[%clk 0:00:49]} 25... hxg3+ {[%clk 0:00:52.6]} 26. fxg3 {[%clk 0:00:49.2]}
26... Qxa6 {[%clk 0:00:53]} 27. Rb6 {[%clk 0:00:42.9]} 27... Qxa5 {[%clk
0:00:49.7]} 28. Rxb7 {[%clk 0:00:43.7]} 28... R4c7 {[%clk 0:00:50]} 29. Rxc7
{[%clk 0:00:43.9]} 29... Qxc7 {[%clk 0:00:50.4]} 30. Bb2 {[%clk 0:00:35.5]}
30... Be5 {[%clk 0:00:50.5]} 31. Rf3 {[%clk 0:00:30.7]} 31... Qb8 {[%clk
0:00:42.9]} 32. Qd2 {[%clk 0:00:21.2]} 32... Bd7 {[%clk 0:00:27]} 33. Ba3 {[%clk
0:00:19.7]} 33... Nf5 {[%clk 0:00:24.7]} 34. Nxf5 {[%clk 0:00:19.6]} 34... Bxf5
{[%clk 0:00:25.9]} 35. Qxd5 {[%clk 0:00:19.2]} 35... Rc2 {[%clk 0:00:26.8]} 36.
e4 {[%clk 0:00:10.3]} 36... Be6 {[%clk 0:00:27.5]} 37. Qd3 {[%clk 0:00:10.7]}
37... Qb1 {[%clk 0:00:26.1]} 38. Qd8+ {[%clk 0:00:06.6]} 38... Kh7 {[%clk
0:00:23.8]} 39. Qh4+ {[%clk 0:00:07.1]} 39... Kg7 {[%clk 0:00:24.6]} 40. Be7
{[%clk 0:00:07.3]} 40... Qd1 {[%clk 0:00:19.3]} 41. Bf6+ {[%clk 0:00:07.5]}
41... Bxf6 {[%clk 0:00:20.7]} 42. Qxf6+ {[%clk 0:00:08.1]} 42... Kg8 {[%clk
0:00:22.2]} 43. Rf2 {[%clk 0:00:08.3]} 43... Rc1 {[%clk 0:00:20.8]} 44. g4
{[%clk 0:00:08.5]} 44... Qg1+ {[%clk 0:00:20.2]} 45. Kg3 {[%clk 0:00:09.4]}
45... Qe1 {[%clk 0:00:18.3]} 46. Qd8+ {[%clk 0:00:09.3]} 46... Kg7 {[%clk
0:00:19.3]} 47. Qf6+ {[%clk 0:00:10.1]} 47... Kh7 {[%clk 0:00:20.1]} 48. Qh4+
{[%clk 0:00:10.8]} 48... Kg8 {[%clk 0:00:21.5]} 49. Qd8+ {[%clk 0:00:11.5]}
49... Kg7 {[%clk 0:00:22.5]} 50. Qf6+ {[%clk 0:00:12.1]} 50... Kh7 {[%clk
0:00:23.4]} 51. Qh4+ {[%clk 0:00:12.8]} 51... Kg8 {[%clk 0:00:25]} 52. Qd8+
{[%clk 0:00:13.1]} 52... Kg7 {[%clk 0:00:26.1]} 53. Qf6+ {[%clk 0:00:13.8]}
53... Kh7 {[%clk 0:00:26.6]} 54. Qh4+ {[%clk 0:00:14.5]} 54... Kg8 {[%clk
0:00:27.9]} 55. Qd8+ {[%clk 0:00:15]} 55... Kg7 {[%clk 0:00:28.9]} 56. Qf6+
{[%clk 0:00:15.7]} 56... Kh7 {[%clk 0:00:30]} 1/2-1/2